Cogmind - Beta 15 @@@ ROGUE MODE // 2025.09.10 @ 11:48:14 Player: cingulata Result: Destroyed by S-10 Pest with Light Assault Rifle Performance ------------- Evolutions (0) 0 Regions Visited (1) 200 Robots Destroyed (21) 105 Value Destroyed (455) 455 Prototype IDs (1) 20 Alien Tech Used (0) 0 Bonus (0) 0 TOTAL SCORE: 780 Bonus ------- None Cogmind --------- Core Integrity 0/250 Matter 203/300 Energy 280/280 System Corruption 0% Temperature Cool (0) Movement Rolling (100) Location -10/Materials Parts ------- > --- POWER (1) -------- Heavy Ion Engine > --- PROPULSION (2) --- Compact Wheel Compact Wheel > --- UTILITY (2) ------ Large Storage Unit Seismic Detector > --- WEAPON (2) ------- Light Assault Rifle Flail > --- INVENTORY (15) --- Heavy Ion Engine Heavy Ion Engine Light Treads Light Treads Aluminum Leg Aluminum Leg Aluminum Leg Aluminum Leg Aluminum Leg Wheel Heat Sink High-capacity Storage Unit Sensor Array Grenade Launcher Grenade Launcher Peak State ------------ > --- POWER ------------ Heavy Ion Engine > --- PROPULSION ------- Aluminum Leg Aluminum Leg > --- UTILITY ---------- Large Storage Unit Seismic Detector > --- WEAPON ----------- Assault Rifle Light Cannon > --- INVENTORY -------- Heavy Ion Engine Heavy Ion Engine Light Treads Light Treads Aluminum Leg Aluminum Leg Aluminum Leg Wheel Compact Wheel Compact Wheel Heat Sink High-capacity Storage Unit Sensor Array Light Assault Rifle Flail [Rating: 11] Favorites ----------- Power Light Ion Engine Engine Light Ion Engine Propulsion Aluminum Leg Treads Light Treads Leg Aluminum Leg Wheel Compact Wheel Utility Seismic Detector Device Seismic Detector Storage Large Storage Unit Weapon Assault Rifle Ballistic Gun Assault Rifle Ballistic Cannon Light Cannon Launcher Grenade Launcher Impact Weapon Flail Build | -11 -10 ------- Run | Yrd Mat Slots Evolved . | . . Power . | . . Propulsion . | . . Utility . | . . Weapon . | . . Parts Attached 19 | 1 18 Power 2 | . 2 Engine 2 | . 2 Core . | . . Reactor . | . . Propulsion 7 | . 7 Treads 2 | . 2 Leg 3 | . 3 Wheel 2 | . 2 Hover . | . . Flight . | . . Utility 4 | 1 3 Device 2 | 1 1 Storage 2 | . 2 Processor . | . . Hackware . | . . Protection . | . . Artifact . | . . Weapon 6 | . 6 Energy Gun . | . . Energy Cannon . | . . Ballistic Gun 2 | . 2 Ballistic Cannon 1 | . 1 Launcher 1 | . 1 Special Weapon . | . . Impact Weapon 2 | . 2 Slashing Weapon . | . . Piercing Weapon . | . . Special Melee Weapon . | . . Unidentified Prototypes 1 | . 1 Parts Lost 6 | . 6 Power 1 | . 1 Propulsion 2 | . 2 Utility . | . . Weapon 3 | . 3 Highest Loss Streak 4 | . 4 To Critical Strikes . | . . Average Backups 10 | 6 10 Power 1 | 1 1 Propulsion 5 | 4 5 Utility 2 | . 2 Weapon 1 | 1 2 Tool/Special . | . . Unused Backups 17 | 1 16 Power 2 | . 2 Propulsion 7 | 1 6 Utility 7 | . 7 Weapon 1 | . 1 Tool/Special . | . . Average Slot Usage (%) 99 | . 99 Engine 14 | . 14 Treads 2 | . 2 Leg 24 | . 24 Device 11 | . 11 Storage 16 | . 16 Ballistic Gun 21 | . 21 Ballistic Cannon 2 | . 2 Impact Weapon 3 | . 3 Peak Build Rating 11 | 8 11 Average Rating 8 | 6 8 On Entrance 7 | 6 8 Naked Turns . | . . Heaviest Build 73 | 13 73 Greatest Support 40 | 20 40 Greatest Overweight (x) 3 | . 3 Average Overweight (x) . | . . Largest Inventory Capacity 20 | 8 20 Average Capacity 13 | 8 13 Most Carried 15 | 8 15 Average Carried 10 | 6 11 Final Capacity 15 | 8 15 Final Carried 15 | 8 15 Class Distribution -------------------- 100% | Mutant Dominant Class ---------------- Mutant | -10/Materials Resources | -11 -10 ----------- Run | Yrd Mat Matter Collected 799 | 282 517 Remotely . | . . Salvage Created 742 | 157 585 Parts 33 | 11 22 Haulers Intercepted . | . . Recyclers Shooed 1 | 1 . Parts Field Recycled . | . . Retrieved Matter . | . . Parts Self-Destructed . | . . Prevented . | . . Kills | -11 -10 ------- Run | Yrd Mat Combat Hostiles Destroyed 13 | . 13 Melee 2 | . 2 Guns 5 | . 5 Cannons 4 | . 4 AOE 2 | . 2 Classes Destroyed 5 | 2 3 Tunneler 4 | 4 . Recycler 3 | 1 2 Watcher 1 | . 1 Swarmer 3 | . 3 Grunt 10 | . 10 Best Kill Streak 3 | 3 3 Combat Bots Only 3 | . 3 Max Kills in Single Turn 2 | 1 2 Gunslinging . | . . Exploded 2 | . 2 Melee 1 | . 1 Uniques/NPCs Destroyed . | . . Combat | -11 -10 -------- Run | Yrd Mat Hostile Shots Fired 146 | . 146 Missed 36 | . 36 Hits 110 | . 110 Projectile 110 | . 110 Damage Taken 1222 | . 1222 Core 254 | . 254 Absorbed by Shields . | . . Core Remaining (%) 100 | 100 . Volleys Fired 68 | 12 56 Largest 2 | 2 2 Hottest 50 | 40 50 Shots Fired 119 | 24 95 Gun 90 | 24 66 Cannon 26 | . 26 Launcher 3 | . 3 Special . | . . Kinetic 116 | 24 92 Thermal . | . . Explosive 3 | . 3 Electromagnetic . | . . Robot Hit Streak 9 | 8 9 Robot Miss Streak 4 | 1 4 Penetration Max . | . . Secondary Targets 1 | . 1 Max Gunslinging Chain 1 | . 1 Shots Hit Robots 73 | 17 56 Core Hits 29 | 6 23 Critical Kills . | . . Critical Parts Destroyed . | . . Critical Strikes 1 | . 1 Blast 1 | . 1 Melee Attacks 12 | . 12 Impact 12 | . 12 Slashing . | . . Piercing . | . . Sneak Attacks 1 | . 1 Combat Hostiles . | . . Follow-up Attacks . | . . Damage Inflicted 1322 | 230 1092 Guns 651 | 230 421 Cannons 302 | . 302 Explosions 236 | . 236 Melee 133 | . 133 Ramming . | . . Kinetic 953 | 230 723 Thermal . | . . Explosive 236 | . 236 Electromagnetic . | . . Impact 133 | . 133 Slashing . | . . Piercing . | . . Highest Corruption . | . . Average Corruption . | . . Corruption Purged . | . . Corruption Blocked . | . . Overload Shots . | . . Overflow Damage 38 | . 38 Projectiles . | . . Explosions 10 | . 10 Melee 28 | . 28 Knockbacks 7 | . 7 Impact . | . . Kinetic 6 | . 6 Secondary 1 | . 1 Self-Inflicted Damage 56 | . 56 Shots 3 | . 3 Rammed . | . . Targets Rammed . | . . Kicked . | . . Crushed . | . . Highest Temperature 54 | 6 54 Average Temperature 9 | 6 9 Received Heat Transfer 552 | . 552 Siege Activations . | . . Martial Activations . | . . Shielding Activations . | . . Robots Disrupted . | . . Combat Hostiles . | . . Robots Corrupted . | . . Combat Hostiles . | . . Parts Fried 1 | . 1 Impact Corruptions 1 | . 1 Robots Melted . | . . Combat Hostiles . | . . Parts Melted . | . . Heat Transferred . | . . Parts Sabotaged . | . . Parts Stolen . | . . Parts Stripped . | . . Power Chain Reactions . | . . Alert | -11 -10 ------- Run | Yrd Mat Maximum Alert Level . | . . Low Security (%) 100 | 100 100 Level 1 . | . . Level 2 . | . . Level 3 . | . . Level 4 . | . . Level 5 . | . . High Security . | . . Max Security . | . . Peak Influence 152 | 10 152 Initial . | . . Average 25 | 3 27 Influence Increases 447 | 25 422 Destroy 0b10 Robot/C 260 | . 260 Destroy 0b10 Robot/NC 40 | 25 15 Destroy Leader 62 | . 62 Successful Hack 5 | . 5 Disable Machine 15 | . 15 Destroy Structure 20 | . 20 Lose Combat Pursuer 45 | . 45 Influence Decreases 313 | 25 288 Time Decay 275 | 25 250 Lost Part 38 | . 38 Squads Dispatched 4 | . 4 Investigation 3 | . 3 Extermination . | . . Reinforcement 1 | . 1 Assault . | . . Garrison . | . . Intercept . | . . Searches Triggered . | . . Construction Impeded . | . . Haulers Reinforced . | . . Active Scanning Responses . | . . Cargo Convoy Interrupts . | . . Stealth | -11 -10 --------- Run | Yrd Mat Distress Signals 1 | . 1 Communications Jammed . | . . Distress Signals . | . . Times Spotted 22 | . 22 Peak Tracking Total 7 | . 7 Tactical Retreats 2 | . 2 Traps | -11 -10 ------- Run | Yrd Mat Traps Triggered 3 | . 3 Indirectly . | . . Trap Hack Attempts . | . . Triggered . | . . Disarmed . | . . Reprogrammed . | . . Reused . | . . Traps Extracted . | . . Installed . | . . Triggered . | . . Machines | -11 -10 ---------- Run | Yrd Mat Machines Disabled 1 | . 1 Max in Single Turn 1 | . 1 Machines Repaired . | . . Machines Dismantled . | . . Machines Sabotaged . | . . Overloaded Fab Kills . | . . Hacking | -11 -10 --------- Run | Yrd Mat Machines Accessed 4 | . 4 Terminals 2 | . 2 Fabricators . | . . Repair Stations . | . . Recycling Units 2 | . 2 Scanalyzers . | . . Garrison Access . | . . Total Hacks 13 | . 13 Successful 6 | . 6 Failed 7 | . 7 Catastrophic 1 | . 1 Database Lockouts . | . . Manual 11 | . 11 Terminals 8 | . 8 Fabricators . | . . Repair Stations . | . . Recycling Units 5 | . 5 Scanalyzers . | . . Garrison Access . | . . Terminal Hacks . | . . Fabricator Hacks . | . . Repair Station Hacks . | . . Recycling Unit Hacks 1 | . 1 Retrieve Components 1 | . 1 Scanalyzer . | . . Garrison Access Hacks . | . . Unauthorized Hacks 5 | . 5 Terminals 3 | . 3 Botnet 1 | . 1 Skim 2 | . 2 Fabricators . | . . Repair Stations . | . . Recycling Units 2 | . 2 Recyclers 1 | . 1 Mask 1 | . 1 Scanalyzers . | . . Garrison Access . | . . Data Cores Recovered . | . . Used . | . . Hacking Detections 3 | . 3 Full Trace Events . | . . Feedback Events . | . . Feedback Blocked . | . . Robot Schematics Acquired . | . . Robots Built . | . . Authchips . | . . Time . | . . Total Robot Build Rating . | . . Part Schematics Acquired . | . . Parts Built . | . . Authchips . | . . Time . | . . Total Part Build Rating . | . . Parts Repaired . | . . Time . | . . Parts Recycled . | . . Recycled Matter . | . . Retrieved Matter . | . . Retrieved Components 1 | . 1 Parts Scanalyzed . | . . Part Schematics Acquired . | . . Parts Damaged . | . . Bothacking | -11 -10 ------------ Run | Yrd Mat Used RIF Installer . | . . Robots Hacked . | . . Non-combat . | . . Combat . | . . Robot Hacks Applied . | . . Relay Couplers Released . | . . Fabnet Peak Effective % . | . . Robots Rewired . | . . Allies Hacked . | . . Hacks Repelled . | . . Allies | -11 -10 -------- Run | Yrd Mat Total Allies . | . . Largest Group . | . . Highest-Rated Group . | . . Highest-Rated Ally . | . . Total Orders . | . . Ally Attacks . | . . Total Damage . | . . Kills . | . . Allies Corrupted . | . . Allies Melted . | . . Intel | -11 -10 ------- Run | Yrd Mat Active Infowar (turns) 870 | 50 820 Terrain 71 | . 71 Seismic 799 | 50 749 Robot Analysis Total . | . . Derelict Logs Recovered . | . . Drone Launches . | . . Drone Recoveries . | . . Exploration | -11 -10 ------------- Run | Yrd Mat Turns Passed 1141 | 85 1056 Spaces Moved 519 | 31 488 Core . | . . Treads 22 | . 22 Legs 487 | 31 456 Wheels 10 | . 10 Hover . | . . Flight . | . . Fastest Speed 100 | 120 100 Average Speed 155 | 120 158 Slowest Speed 330 | 120 330 Overloaded Moves . | . . Propulsion Burnouts . | . . Robots Hopped . | . . Potential Cave-ins . | . . Cave-ins Triggered . | . . Exploration Rate (%) 39 | 3 76 Regions Visited 1 Branch Regions . Pre-discovered Areas . | . . Known Exits Taken . | . . Unknown Exits Taken 1 | 1 . Scrap Searched . | . . Spaces Dug 5 | . 5 Terrain Destroyed 19 | . 19 Melee 5 | . 5 Projectile . | . . AOE 14 | . 14 Terrain Rammed . | . . Walls Destroyed . | . . Machines Disabled . | . . Actions | -11 -10 --------- Run | Yrd Mat Total 706 | 55 651 Wait 43 | 7 36 Move 518 | 30 488 Hop . | . . Pick Up 21 | 4 17 Fast Attach . | . . Attach 7 | 1 6 Detach . | . . Swap 28 | . 28 Drop 9 | 1 8 Fire 68 | 12 56 Melee 12 | . 12 Ram . | . . Kick . | . . Crush . | . . Escape Stasis . | . . Rewire . | . . Trap . | . . Miscellaneous . | . . Route ------- -11/Scrapyard -10/Materials (discovered 4 exits: [*Mat x3] / [*Min]) History --------- Turn | Location | Event 23 | -11/Scrapyard | Discovered new exit (range 2) 86 | -11/Scrapyard | Entered Materials 324 | -10/Materials | Build established: Mutant 375 | -10/Materials | Discovered new exit (range 6) 435 | -10/Materials | Discovered new exit (range 13) 631 | -10/Materials | Discovered new exit (range 13) 1011 | -10/Materials | Core integrity fell below 50% 1032 | -10/Materials | Core integrity fell below 20% 1061 | -10/Materials | Lost 4 parts (2n2w) 1140 | -10/Materials | Discovered new exit (range 3) 1142 | -10/Materials | Destroyed by S-10 Pest with Light Assault Rifle Last Messages --------------- 01075_ G-34 Mercenary destroyed. 01077_ K-01 Serf collects debris. 01084_ G-34 Mercenary destroyed. 01084_ K-01 Serf collects debris. 01088_ Acquired 20 matter. 01090_ U-05 Engineer lays Concrete. 01090_ K-01 Serf collects debris. 01091_ Acquired 32 matter. 01091_ U-05 Engineer lays Concrete. 01092_ U-05 Engineer builds a Wall. 01094_ K-01 Serf collects debris. 01097_ U-05 Engineer builds a Door. 01098_ K-01 Serf collects debris. 01100_ Acquired Aluminum Leg. 01101_ U-05 Engineer builds a Wall. 01109_ U-05 Engineer lays Concrete. 01111_ K-01 Serf collects debris. 01120_ U-05 Engineer builds a Wall. 01130_ K-01 Serf cleans the Terminal. 01140_ EXIT=FOUND Map ----- +----------------------------------------------------+ | | | | | | | | | | | | | | | | | | | | | | | | | | | | | | | | | ?############???????????????????????????? | | ?# = ########????????????????????? | | ?# # #????????????????????? | | ?# # #????????????????????? | | ?# # #????????????????????? | | ?# # #????????????????????? | | ???#####+#### #????????????????????? | | ??????# + #??????????########??? | | ??????# ######/########??? ??? | | ####### #?# @ a t ??? | | # ## #?# < ??? | | # ""## ### s s ?? | | # T" #####+##########s ?? | | # #???????????????# ^ * ?? | | = + T #???????????????# ?? | | # #???????????????# ?? | | # #???????????????# ## | | [ * ### ###???????????????# | | =! ## #?????????????????# | | ##+##### #?????????????????# | | ?#%#???? #?????????????????????########## | | ?#*#???? #??????????????????????????????? | | ?#=#???? #??????????????????????????????? | | ?# ##??? #??????????????????????????????? | | ##+"###? #??????????????????????????????? | | # #? #??????????????????????????????? | | # #? ???????????????????????????????# | | # = #? ???????????????????????????????# | | # ## ###?????????????#########+###### | | # # ????????????? # | | # """ + ????????????? # | | # """ # ????????????? + | | # """ # #????????????????##+####### # | | # """ # #??????????????????????#### # | +----------------------------------------------------+ Best States ------------- Heat Dissipation 25 Energy Generation 14 Energy Capacity 280 Matter Stores 300 Matter Capacity 300 Sight Range 16 Terrain Scan Range 16 Terrain Scan Density 10 Evasion (%) 55 Recoil Reduction 2 Item Schematics ----------------- None Robot Schematics ------------------ None Fabricated ------------ Nothing Repaired ---------- Nothing Alien Tech Used ----------------- None Achievements -------------- None Challenges ------------ None Game ------ Seed GlidesysCompanionPower Manual? 0 Play Time 00:15:02 Cumulative 120.7 hours Start 2025.09.10 @ 11:33:41 End 2025.09.10 @ 11:48:14 Sessions 1 Manual Loads 0 Difficulty Rogue Special Mode None Game No. 63 Rogue 59 Adventurer 1 Explorer 3 Win Type - Total 4 Types 3/1/0/0/0/0/0/0/0/0 Lore% 57 Gallery% 59 Achievement% 56 Wizard Run 0 Options --------- Layout 2 ASCII 0 Keyboard 1 Movement Numpad Keybinds 0 Fullscreen 1 Font 32/SmallcapsGlow Map View 50x44 Zoom Use 0% Tactical HUD 1 Map Filters NONE Filters NONE Steam 1 RUN: b6a35c7c-dae5-46cc-8974-b75e778d3f1b